Cogmind - Beta 9.2 @@@ ROGUE MODE // 2019.11.12 @ 22:03:38 Player: fartblaster Result: Destroyed by Y-45 Defender with Heavy Assault Rifle Performance ------------- Evolutions (2) 1000 Regions Visited (3) 600 Robots Destroyed (57) 285 Value Destroyed (1579) 1579 Prototype IDs (0) 0 Alien Tech Used (0) 0 Bonus (0) 0 TOTAL SCORE: 3464 Bonus ------- None Cogmind --------- Core Integrity 0/550 Matter 230/300 Energy 100/100 System Corruption 0% Temperature Cool (9) Movement Core (300) Ox5 Location -8/Materials Parts ------- > --- POWER (2) -------- (None) > --- PROPULSION (4) --- (None) > --- UTILITY (3) ------ Large Storage Unit > --- WEAPON (2) ------- (None) > --- INVENTORY (10) --- Light Ion Engine Small Storage Unit Light Armor Plating Light Armor Plating Small Laser Rocket Launcher Peak State ------------ > --- POWER ------------ Light Ion Engine Improved Ion Engine > --- PROPULSION ------- Aluminum Leg Aluminum Leg Aluminum Leg > --- UTILITY ---------- Improved Heat Sink Large Storage Unit Signal Interpreter > --- WEAPON ----------- EM Pulse Cannon EM Pulse Cannon > --- INVENTORY -------- Light Ion Engine Small Storage Unit Core Shielding Small Laser Ion Cannon Rocket Launcher Rocket Launcher [Rating: 18] Favorites ----------- Power Ion Engine Engine Ion Engine Power Core Light Nuclear Core Propulsion Aluminum Leg Treads Light Treads Leg Aluminum Leg Flight Unit Flight Unit Utility Large Storage Unit Device Improved Heat Sink Storage Large Storage Unit Processor Signal Interpreter Protection Core Shielding Weapon Assault Rifle Energy Gun Small Laser Energy Cannon EM Pulse Cannon Ballistic Gun Assault Rifle Launcher Rocket Launcher Build | -11 -10 -9 -8 ------- Run | Scr Mat Mat Mat Slots Evolved 4 | . . 2 2 Power 1 | . . . 1 Propulsion 2 | . . 2 . Utility 1 | . . . 1 Weapon . | . . . . Parts Attached 54 | 6 8 22 18 Power 11 | 1 1 3 6 Engine 8 | 1 1 3 3 Core 3 | . . . 3 Reactor . | . . . . Propulsion 15 | 2 2 8 3 Treads 5 | . . 4 1 Leg 9 | 2 2 4 1 Wheel . | . . . . Hover . | . . . . Flight 1 | . . . 1 Utility 5 | 1 2 . 2 Device 1 | . . . 1 Storage 2 | 1 1 . . Processor 1 | . 1 . . Hackware . | . . . . Protection 1 | . . . 1 Artifact . | . . . . Weapon 23 | 2 3 11 7 Energy Gun 4 | . . 2 2 Energy Cannon 4 | . . 3 1 Ballistic Gun 11 | 2 3 3 3 Ballistic Cannon . | . . . . Launcher 4 | . . 3 1 Special Weapon . | . . . . Impact Weapon . | . . . . Slashing Weapon . | . . . . Piercing Weapon . | . . . . Special Melee Weapon . | . . . . Unidentified Prototypes . | . . . . Parts Lost 27 | . 3 5 19 Power 4 | . . . 4 Propulsion 10 | . 1 3 6 Utility 2 | . . . 2 Weapon 11 | . 2 2 7 Highest Loss Streak 13 | . 2 2 13 Average Slot Usage (%) 88 | . 97 88 73 Engine 10 | . 14 11 6 Core 1 | . . . 9 Treads 8 | . . 17 . Leg 19 | . 27 15 17 Device 1 | . . . 8 Storage 12 | . 15 11 9 Processor 9 | . 12 11 2 Protection 1 | . . . 6 Energy Gun 2 | . . 4 2 Energy Cannon 3 | . . 5 3 Ballistic Gun 15 | . 26 11 6 Naked Turns . | . . . . Heaviest Build 39 | 12 29 35 39 Greatest Support 60 | 20 20 60 30 Greatest Overweight (x) 9 | . 2 2 9 Average Overweight (x) . | . . . 1 Largest Inventory Capacity 12 | 6 12 10 10 Average Capacity 9 | 5 10 10 10 Most Carried 10 | 4 10 10 10 Average Carried 8 | 2 8 9 7 Final Capacity 10 | 6 10 10 10 Final Carried 9 | 4 9 9 6 Class Distribution -------------------- 68% | Scavenger-Mutant 31% | Mutant Dominant Class ---------------- Scavenger-Mutant | -10/Materials Scavenger-Mutant | -9/Materials Scavenger-Mutant | -8/Materials Resources | -11 -10 -9 -8 ----------- Run | Scr Mat Mat Mat Matter Collected 1236 | 227 333 527 149 Remotely . | . . . . Salvage Created 1974 | . 434 1021 519 Parts 147 | . 27 84 36 Haulers Intercepted . | . . . . Recyclers Shooed 3 | . . 3 . Parts Field Recycled . | . . . . Retrieved Matter . | . . . . Parts Self-Destructed . | . . . . Prevented . | . . . . Kills | -11 -10 -9 -8 ------- Run | Scr Mat Mat Mat Combat Hostiles Destroyed 44 | . 9 22 13 Guns 30 | . 9 14 7 Cannons 11 | . . 6 5 AOE 3 | . . 2 1 Classes Destroyed 8 | . 2 6 . Worker 1 | . . 1 . Builder 1 | . . 1 . Tunneler 1 | . . 1 . Recycler 2 | . . 2 . Watcher 8 | . 2 5 1 Swarmer 12 | . . 7 5 Grunt 21 | . 9 9 3 Sentry 11 | . . 6 5 Best Kill Streak 7 | . 7 5 3 Combat Bots Only 7 | . 7 5 3 Max Kills in Single Turn 2 | . 1 2 1 Gunslinging . | . . . . Exploded 1 | . . 1 1 Melee . | . . . . Uniques/NPCs Destroyed . | . . . . Combat | -11 -10 -9 -8 -------- Run | Scr Mat Mat Mat Damage Taken 3770 | . 703 1326 1741 Core 916 | . 129 231 556 Absorbed by Shields . | . . . . Core Remaining (%) 63 | 100 48 42 . Volleys Fired 176 | . 49 81 46 Largest 2 | . 2 2 2 Hottest 126 | . 40 126 126 Shots Fired 304 | . 83 153 68 Gun 253 | . 83 124 46 Cannon 43 | . . 25 18 Launcher 8 | . . 4 4 Special . | . . . . Kinetic 210 | . 83 98 29 Thermal 57 | . . 26 31 Explosive 8 | . . 4 4 Electromagnetic 29 | . . 25 4 Robot Hit Streak 14 | . 12 14 10 Robot Miss Streak 4 | . 4 3 3 Penetration Max . | . . . . Secondary Targets 5 | . 2 3 . Max Gunslinging Chain 1 | . 1 1 . Shots Hit Robots 203 | . 53 99 51 Core Hits 96 | . 21 52 23 Critical Hits 1 | . . . 1 Critical Kills 1 | . . . 1 Critical Parts Destroyed . | . . . . Melee Attacks . | . . . . Impact . | . . . . Slashing . | . . . . Piercing . | . . . . Sneak Attacks . | . . . . Combat Hostiles . | . . . . Follow-up Attacks . | . . . . Damage Inflicted 3282 | . 633 1706 943 Guns 2089 | . 631 992 466 Cannons 686 | . . 330 356 Explosions 484 | . . 364 120 Melee . | . . . . Ramming 23 | . 2 20 1 Kinetic 1724 | . 631 795 298 Thermal 616 | . . 197 419 Explosive 484 | . . 364 120 Electromagnetic 435 | . . 330 105 Impact . | . . . . Slashing . | . . . . Piercing . | . . . . Highest Corruption . | . . . . Average Corruption . | . . . . Corruption Purged . | . . . . Overload Shots . | . . . . Overflow Damage 38 | . . 38 . Projectiles 38 | . . 38 . Explosions . | . . . . Melee . | . . . . Knockbacks . | . . . . Impact . | . . . . Kinetic . | . . . . Secondary . | . . . . Self-Inflicted Damage 19 | . . 6 13 Shots 1 | . . . 1 Rammed 5 | . . 5 . Targets Rammed 8 | . 1 6 1 Kicked 3 | . 1 1 1 Crushed . | . . . . Highest Temperature 158 | . 4 158 45 Average Temperature 37 | . 2 50 11 Received Heat Transfer 1305 | . 384 489 432 Siege Activations . | . . . . Robots Corrupted 1 | . . 1 . Combat Hostiles . | . . . . Parts Fried 2 | . . 2 . Impact Corruptions . | . . . . Robots Melted . | . . . . Combat Hostiles . | . . . . Parts Melted 2 | . . . 2 Heat Transferred 1266 | . . 450 816 Parts Sabotaged . | . . . . Parts Stolen . | . . . . Parts Stripped . | . . . . Power Chain Reactions . | . . . . Missiles Intercepted . | . . . . Alert | -11 -10 -9 -8 ------- Run | Scr Mat Mat Mat Peak Influence 383 | . 162 295 383 Average Influence 142 | . 54 160 248 Maximum Alert Level 1 | . . 1 1 Low Security (%) 70 | 100 100 67 29 Level 1 29 | . . 32 70 Level 2 . | . . . . Level 3 . | . . . . Level 4 . | . . . . Level 5 . | . . . . High Security . | . . . . Max Security . | . . . . Squads Dispatched 4 | . 1 2 1 Investigation . | . . . . Extermination . | . . . . Reinforcement 4 | . 1 2 1 Assault . | . . . . Garrison . | . . . . Intercept . | . . . . Construction Impeded . | . . . . Haulers Reinforced . | . . . . Stealth | -11 -10 -9 -8 --------- Run | Scr Mat Mat Mat Distress Signals 4 | . 1 2 1 Communications Jammed . | . . . . Distress Signals . | . . . . Times Spotted 80 | . 15 38 27 Peak Tracking Total 7 | . 6 6 7 Tactical Retreats 6 | . . 1 5 Traps | -11 -10 -9 -8 ------- Run | Scr Mat Mat Mat Traps Triggered 1 | . . 1 . Indirectly . | . . . . Trap Hack Attempts . | . . . . Triggered . | . . . . Disarmed . | . . . . Reprogrammed . | . . . . Reused . | . . . . Traps Extracted . | . . . . Installed . | . . . . Triggered . | . . . . Machines | -11 -10 -9 -8 ---------- Run | Scr Mat Mat Mat Machines Disabled 1 | . . . 1 Max in Single Turn 1 | . . . 1 Machines Sabotaged . | . . . . Garrisons Compromised . | . . . . Overloaded Fab Kills . | . . . . Fab Network Shutdowns . | . . . . Hacking | -11 -10 -9 -8 --------- Run | Scr Mat Mat Mat Machines Accessed . | . . . . Terminals . | . . . . Fabricators . | . . . . Repair Stations . | . . . . Recycling Units . | . . . . Scanalyzers . | . . . . Garrison Access . | . . . . Total Hacks . | . . . . Successful . | . . . . Failed . | . . . . Catastrophic . | . . . . Database Lockouts . | . . . . Manual . | . . . . Terminals . | . . . . Fabricators . | . . . . Repair Stations . | . . . . Recycling Units . | . . . . Scanalyzers . | . . . . Garrison Access . | . . . . Terminal Hacks . | . . . . Fabricator Hacks . | . . . . Repair Station Hacks . | . . . . Recycling Unit Hacks . | . . . . Scanalyzer . | . . . . Garrison Access Hacks . | . . . . Unauthorized Hacks . | . . . . Terminals . | . . . . Fabricators . | . . . . Repair Stations . | . . . . Recycling Units . | . . . . Scanalyzers . | . . . . Garrison Access . | . . . . Data Cores Recovered . | . . . . Used . | . . . . Hacking Detections . | . . . . Full Trace Events . | . . . . Feedback Events . | . . . . Feedback Blocked . | . . . . Robot Schematics Acquired . | . . . . Robots Built . | . . . . Matter . | . . . . Time . | . . . . Total Robot Build Rating . | . . . . Part Schematics Acquired . | . . . . Parts Built . | . . . . Matter . | . . . . Time . | . . . . Total Part Build Rating . | . . . . Parts Repaired . | . . . . Time . | . . . . Parts Recycled . | . . . . Recycled Matter . | . . . . Retrieved Matter . | . . . . Retrieved Components . | . . . . Parts Scanalyzed . | . . . . Part Schematics Acquired . | . . . . Parts Damaged . | . . . . Bothacking | -11 -10 -9 -8 ------------ Run | Scr Mat Mat Mat Used RIF Installer . | . . . . Robots Hacked . | . . . . Non-combat . | . . . . Combat . | . . . . Robot Hacks Applied . | . . . . Relay Couplers Released . | . . . . Robots Rewired . | . . . . Allies Hacked . | . . . . Hacks Repelled . | . . . . Allies | -11 -10 -9 -8 -------- Run | Scr Mat Mat Mat Total Allies . | . . . . Largest Group . | . . . . Highest-Rated Group . | . . . . Highest-Rated Ally . | . . . . Total Orders . | . . . . Ally Attacks . | . . . . Total Damage . | . . . . Kills . | . . . . Allies Corrupted . | . . . . Allies Melted . | . . . . Intel | -11 -10 -9 -8 ------- Run | Scr Mat Mat Mat Robot Analysis Total . | . . . . Derelict Logs Recovered . | . . . . Drone Launches . | . . . . Drone Recoveries . | . . . . Exploration | -11 -10 -9 -8 ------------- Run | Scr Mat Mat Mat Turns Passed 2755 | 86 784 1359 526 Spaces Moved 1315 | 65 401 658 191 Core 11 | 6 . . 5 Treads 351 | . . 336 15 Legs 951 | 59 401 322 169 Wheels . | . . . . Hover . | . . . . Flight 2 | . . . 2 Fastest Speed 50 | 50 120 120 150 Average Speed 146 | 113 149 144 158 Slowest Speed 500 | 120 180 180 500 Overloaded Moves . | . . . . Propulsion Burnouts . | . . . . Robots Hopped . | . . . . Cave-ins Triggered . | . . . . Exploration Rate (%) 34 | 4 59 55 18 Regions Visited 3 Branch Regions . Pre-discovered Areas . | . . . . Known Exits Taken 2 | . 1 1 . Unknown Exits Taken 1 | 1 . . . Scrap Searched . | . . . . Spaces Dug . | . . . . Terrain Destroyed 82 | . . 31 51 Melee . | . . . . Projectile . | . . . . AOE 82 | . . 31 51 Actions | -11 -10 -9 -8 --------- Run | Scr Mat Mat Mat Total 1823 | 74 502 906 341 Wait 240 | . 29 131 80 Move 1312 | 64 400 657 191 Hop . | . . . . Pick Up 22 | 4 10 3 5 Fast Attach 17 | 6 2 5 4 Attach 12 | . 2 2 8 Detach . | . . . . Swap 25 | . 4 15 6 Drop 11 | . 5 6 . Fire 176 | . 49 81 46 Melee . | . . . . Ram . | . . . . Kick 6 | . 1 4 1 Crush 2 | . . 2 . Escape Stasis . | . . . . Rewire . | . . . . Trap . | . . . . Miscellaneous . | . . . . Route ------- -11/Scrapyard -10/Materials (discovered 3 exits: *Mat x2 / [*Min]) -9/Materials (discovered 2 exits: *Mat / *Sto) -8/Materials (discovered 1 exit: [*Fac]) History --------- Turn | Location | Event 32 | -11/Scrapyard | Discovered new exit (range 15) 87 | -11/Scrapyard | Entered Materials 306 | -10/Materials | Build established: Mutant 343 | -10/Materials | Destroyed 7 combat bots 498 | -10/Materials | Discovered new exit (range 15) 623 | -10/Materials | Discovered new exit (range 8) 627 | -10/Materials | Build established: Scavenger-Mutant 745 | -10/Materials | Discovered new exit (range 12) 801 | -10/Materials | Core integrity fell below 50% 870 | -10/Materials | Identified exit to Materials 871 | -10/Materials | Entered another Materials area 871 | -9/Materials | Evolved 2 slots: Propulsion x2 892 | -9/Materials | Discovered new exit (range 15) 1112 | -9/Materials | Identified exit to Storage 1237 | -9/Materials | Build established: Mutant 1640 | -9/Materials | Build established: Scavenger-Mutant 2142 | -9/Materials | Core integrity fell below 50% 2192 | -9/Materials | Discovered new exit (range 9) 2229 | -9/Materials | Identified exit to Materials 2230 | -9/Materials | Entered another Materials area 2230 | -8/Materials | Evolved 2 slots: Power x1, Utility x1 2514 | -8/Materials | Discovered new exit (range 3) 2729 | -8/Materials | Core integrity fell below 50% 2751 | -8/Materials | Core integrity fell below 20% 2756 | -8/Materials | Destroyed by Y-45 Defender with Heavy Assault Rifle Last Messages --------------- 02726_ U-05 Engineer lays Concrete. 02727_ U-05 Engineer builds a Wall. 02728_ Core Shielding destroyed. 02731_ Lgt. Ion Engine destroyed. 02732_ U-05 Engineer lays Concrete. 02733_ U-05 Engineer builds a Wall. 02733_ Imp. Ion Engine destroyed. 02737_ U-05 Engineer lays Concrete. 02738_ U-05 Engineer builds a Wall. 02738_ Critical hit. 02738_ Lgt. Treads destroyed. 02738_ U-05 Engineer lays Concrete. 02740_ U-05 Engineer builds a Wall. 02741_ U-05 Engineer destroyed. 02746_ K-01 Serf collects debris. 02747_ Acquired Flight Unit. 02749_ U-05 Engineer lays Concrete. 02749_ K-01 Serf collects debris. 02753_ Flight Unit destroyed. 02753_ K-01 Serf collects debris. Map ----- +----------------------------------------------------+ | ????????????# #???????????????????? | | ????????????############ #???????????????????? | | ???????????????????????# #???????????????????? | | ???????????????????????# #???????????????????? | | ???????????????????????# #???????????????????? | | ??????????????#????????# #??????? ???????????? | | ????????????### #####??# #?????? ???????????? | | ????????????# * // ?## ##??? ?????????????? | | ????????????# / # ###/######?????????? | | ????????????# # ????????? | | ???????????????"" """ + ????????? | | ???????????????"" """ # ????????? | | ???????????????"" """ # ###/######?????????? | | ??????????????? # #####??????????????????? | | ??????????????? # # #????????????????????? | | ??????????????##### ## # #????????????????????? | | ??????????????????? # # ##???????????????????? | | ???????????????????# #%# #???????????????????? | | ???????????????????# ##!# #???????????????????? | | ???????????????????# # # ##???????????????????? | | ???????????????????? #%# #????????????????????? | | ?????????????????????# =##?????????????????????? | | ?????????????????????# #??????????????????????? | | ?????????????????????# #??????????????????????? | | ?????????????????????# =#??????????????????????? | | ?????????????????????# @#########??????????????? | | ?????????????????????#YY# #????????????? | | ?????????????????????#s # """ [ !#????????????? | | ?????????????????????#k +[""" #????????????? | | ???????????????????### #%""" "T" #????????????? | | ??????????????# # #= """ #????????????? | | ??????????????+ Y # ! #????????????? | | ??????????????# #########????????????? | | ??????????????# # #????????????????????? | | ??????????????## ## """ ????????????????????? | | ???????????????# ?# """"" ???????????????????? | | ???????????????# ??#! """"" #??????????????????? | | ???????????????#???# """"" #??????????????????? | | ???????????????????# """ #??????????????????? | | ???????????????????# ! ??? ????????????????????? | | ???????????????????# ?????????????????????????? | | ???????????????????#/ ?????????????????????????? | | ???????????????????# ?????????????????????????? | | ???????????????????# ??????????????????????????? | | ????????????????????#??????????????????????????? | | ???????????????????????????????????????????????? | | ???????????????????????????????????????????????? | | ???????????????????????????????????????????????? | | ???????????????????????????????????????????????? | | ???????????????????????????????????????????????? | +----------------------------------------------------+ Best States ------------- Heat Dissipation 45 Energy Generation 23 Energy Capacity 290 Matter Stores 300 Matter Capacity 300 Sight Range 16 Terrain Scan Density 10 Core Shielding 20 Evasion (%) 40 Recoil Reduction 3 Item Schematics ----------------- None Robot Schematics ------------------ None Fabricated ------------ Nothing Alien Tech Used ----------------- None Achievements -------------- None Challenges ------------ None Game ------ Seed GhostArcGenerator Manual? 0 Play Time 00:28:54 Cumulative 15.0 hours Start 2019.11.12 @ 21:37:39 End 2019.11.12 @ 22:03:38 Sessions 1 Manual Loads 0 Difficulty Rogue Special Mode None Game No. 41 Rogue 41 Adventurer 0 Explorer 0 Win Type - Total 0 Types 0/0/0/0/0/0/0 Lore% 7 Gallery% 18 Achievement% 12 Wizard Run 0 Options --------- ASCII 0 Keyboard 1 Movement Numpad Keybinds 0 Fullscreen 1 Font 18/SmallcapsGlow Map View 76x50 Tactical HUD 1 Map Filters NONE Filters NONE Steam 1 RUN: 14423945-75e8-46ae-938f-64b1dcc483d1